Cogmind - Beta 13 *** ADVENTURER MODE // 2024.03.13 @ 22:46:29 Player: Prophet Result: Self-destructed Performance ------------- Evolutions (1) 500 Regions Visited (2) 400 Robots Destroyed (8) 40 Value Destroyed (102) 102 Prototype IDs (1) 20 Alien Tech Used (0) 0 Bonus (0) 0 TOTAL SCORE: 1062 Bonus ------- None Cogmind --------- Core Integrity 392/400 Matter 285/300 Energy 250/250 System Corruption 0% Temperature Cool (0) Movement Flying (117) Ox1 Location -9/Materials Parts ------- > --- POWER (2) -------- Ion Engine > --- PROPULSION (2) --- Flight Unit Flight Unit > --- UTILITY (3) ------ Sensor Array Signal Interpreter ECM Suite > --- WEAPON (2) ------- Improved EM Shotgun Improved EM Shotgun > --- INVENTORY (5) ---- Light Ion Engine Improved Hover Unit Improved EM Shotgun Improved EM Shotgun Peak State ------------ > --- POWER ------------ Ion Engine > --- PROPULSION ------- Flight Unit Flight Unit > --- UTILITY ---------- Improved Terrain Scanner ECM Suite > --- WEAPON ----------- Improved EM Shotgun Improved EM Shotgun > --- INVENTORY -------- Light Ion Engine Improved Terrain Scanner Improved EM Shotgun Improved EM Shotgun [Rating: 14] Favorites ----------- Power Ion Engine Engine Ion Engine Propulsion Flight Unit Wheel Wheel Flight Unit Flight Unit Utility ECM Suite Device ECM Suite Storage Small Storage Unit Processor Signal Interpreter Weapon Improved EM Shotgun Energy Gun Improved EM Shotgun Special Weapon Mining Laser Build | -11 -10 -9 ------- Run | Yrd Mat Mat Slots Evolved 2 | . . 2 Power 1 | . . 1 Propulsion . | . . . Utility 1 | . . 1 Weapon . | . . . Parts Attached 19 | 8 10 1 Power 4 | 2 2 . Engine 4 | 2 2 . Core . | . . . Reactor . | . . . Propulsion 4 | 2 2 . Treads . | . . . Leg . | . . . Wheel 2 | 2 . . Hover . | . . . Flight 2 | . 2 . Utility 6 | 2 3 1 Device 4 | 1 2 1 Storage 1 | 1 . . Processor 1 | . 1 . Hackware . | . . . Protection . | . . . Artifact . | . . . Weapon 5 | 2 3 . Energy Gun 4 | 1 3 . Energy Cannon . | . . . Ballistic Gun . | . . . Ballistic Cannon . | . . . Launcher . | . . . Special Weapon 1 | 1 . . Impact Weapon . | . . . Slashing Weapon . | . . . Piercing Weapon . | . . . Special Melee Weapon . | . . . Unidentified Prototypes 1 | . 1 . Parts Lost . | . . . Power . | . . . Propulsion . | . . . Utility . | . . . Weapon . | . . . Highest Loss Streak . | . . . To Critical Strikes . | . . . Average Slot Usage (%) 97 | . 98 88 Engine 13 | . 14 11 Wheel 2 | . 3 . Flight 24 | . 24 22 Device 25 | . 26 22 Processor 1 | . 1 11 Energy Gun 24 | . 24 22 Special Weapon 1 | . 1 . Naked Turns . | . . . Heaviest Build 14 | 13 14 14 Greatest Support 20 | 20 20 8 Greatest Overweight (x) 1 | . 1 1 Average Overweight (x) . | . . 1 Largest Inventory Capacity 8 | 8 8 5 Average Capacity 5 | 7 5 5 Most Carried 5 | 3 5 4 Average Carried 3 | 1 3 3 Final Capacity 8 | 8 5 5 Final Carried 4 | 3 4 4 Class Distribution -------------------- 85% | Mutant 14% | Scavenger-Mutant Dominant Class ---------------- Mutant | -10/Materials Scavenger-Mutant | -9/Materials Resources | -11 -10 -9 ----------- Run | Yrd Mat Mat Matter Collected 375 | 280 95 . Remotely . | . . . Salvage Created 199 | 98 101 . Parts 22 | 8 14 . Haulers Intercepted . | . . . Recyclers Shooed 1 | 1 . . Parts Field Recycled . | . . . Retrieved Matter . | . . . Parts Self-Destructed . | . . . Prevented . | . . . Kills | -11 -10 -9 ------- Run | Yrd Mat Mat Combat Hostiles Destroyed 3 | . 3 . Guns 3 | . 3 . Classes Destroyed 4 | 2 2 . Tunneler 2 | 2 . . Recycler 1 | 1 . . Watcher 2 | . 2 . Swarmer 3 | . 3 . Best Kill Streak 3 | 3 3 . Combat Bots Only 3 | . 3 . Max Kills in Single Turn 1 | 1 1 . Gunslinging . | . . . Exploded . | . . . Melee . | . . . Uniques/NPCs Destroyed . | . . . Combat | -11 -10 -9 -------- Run | Yrd Mat Mat Hostile Shots Fired 17 | . 14 3 Missed 4 | . 4 . Damage Taken 109 | . 76 33 Core 20 | . 12 8 Absorbed by Shields . | . . . Ignored by Resistances 34 | . 24 10 Core Remaining (%) 97 | 100 95 . Volleys Fired 18 | 11 7 . Largest 2 | 2 2 . Hottest 140 | 140 140 . Shots Fired 26 | 12 14 . Gun 22 | 11 11 . Cannon . | . . . Launcher . | . . . Special 4 | 1 3 . Kinetic . | . . . Thermal 18 | 12 6 . Explosive . | . . . Electromagnetic 8 | . 8 . Robot Hit Streak 23 | 10 23 . Robot Miss Streak 1 | 1 1 . Penetration Max . | . . . Secondary Targets . | . . . Shots Hit Robots 19 | 10 9 . Core Hits 12 | 4 8 . Critical Kills . | . . . Critical Parts Destroyed . | . . . Critical Strikes . | . . . Melee Attacks . | . . . Impact . | . . . Slashing . | . . . Piercing . | . . . Sneak Attacks . | . . . Combat Hostiles . | . . . Follow-up Attacks . | . . . Damage Inflicted 297 | 114 183 . Guns 297 | 114 183 . Cannons . | . . . Explosions . | . . . Melee . | . . . Ramming . | . . . Kinetic . | . . . Thermal 147 | 114 33 . Explosive . | . . . Electromagnetic 150 | . 150 . Impact . | . . . Slashing . | . . . Piercing . | . . . Highest Corruption . | . . . Average Corruption . | . . . Corruption Purged . | . . . Corruption Blocked . | . . . Overload Shots . | . . . Overflow Damage . | . . . Projectiles . | . . . Explosions . | . . . Melee . | . . . Knockbacks . | . . . Impact . | . . . Kinetic . | . . . Secondary . | . . . Self-Inflicted Damage 11 | . 11 . Shots 1 | . 1 . Rammed . | . . . Targets Rammed . | . . . Kicked . | . . . Crushed . | . . . Highest Temperature 140 | 40 140 . Average Temperature 51 | 23 55 . Received Heat Transfer 30 | . 15 15 Siege Activations . | . . . Robots Corrupted . | . . . Combat Hostiles . | . . . Parts Fried . | . . . Impact Corruptions . | . . . Robots Melted . | . . . Combat Hostiles . | . . . Parts Melted . | . . . Heat Transferred 325 | 250 75 . Parts Sabotaged . | . . . Parts Stolen . | . . . Parts Stripped . | . . . Power Chain Reactions 1 | . 1 . Alert | -11 -10 -9 ------- Run | Yrd Mat Mat Peak Influence 95 | 15 95 36 Initial 21 | . 8 21 Average 46 | 4 54 23 Maximum Alert Level . | . . . Low Security (%) 100 | 100 100 100 Level 1 . | . . . Level 2 . | . . . Level 3 . | . . . Level 4 . | . . . Level 5 . | . . . High Security . | . . . Max Security . | . . . Squads Dispatched . | . . . Investigation . | . . . Extermination . | . . . Reinforcement . | . . . Assault . | . . . Garrison . | . . . Intercept . | . . . Searches Triggered . | . . . Construction Impeded . | . . . Haulers Reinforced . | . . . Active Scanning Responses . | . . . Cargo Convoy Interrupts . | . . . Stealth | -11 -10 -9 --------- Run | Yrd Mat Mat Distress Signals 1 | . 1 . Communications Jammed . | . . . Distress Signals . | . . . Times Spotted 14 | . 10 4 Peak Tracking Total 5 | . 3 5 Tactical Retreats 3 | . 3 . Traps | -11 -10 -9 ------- Run | Yrd Mat Mat Traps Triggered . | . . . Indirectly . | . . . Trap Hack Attempts . | . . . Triggered . | . . . Disarmed . | . . . Reprogrammed . | . . . Reused . | . . . Traps Extracted . | . . . Installed . | . . . Triggered . | . . . Machines | -11 -10 -9 ---------- Run | Yrd Mat Mat Machines Disabled 2 | . 2 . Max in Single Turn 1 | . 1 . Machines Repaired . | . . . Machines Dismantled . | . . . Machines Sabotaged . | . . . Overloaded Fab Kills . | . . . Hacking | -11 -10 -9 --------- Run | Yrd Mat Mat Machines Accessed . | . . . Terminals . | . . . Fabricators . | . . . Repair Stations . | . . . Recycling Units . | . . . Scanalyzers . | . . . Garrison Access . | . . . Total Hacks . | . . . Successful . | . . . Failed . | . . . Catastrophic . | . . . Database Lockouts . | . . . Manual . | . . . Terminals . | . . . Fabricators . | . . . Repair Stations . | . . . Recycling Units . | . . . Scanalyzers . | . . . Garrison Access . | . . . Terminal Hacks . | . . . Fabricator Hacks . | . . . Repair Station Hacks . | . . . Recycling Unit Hacks . | . . . Scanalyzer . | . . . Garrison Access Hacks . | . . . Unauthorized Hacks . | . . . Terminals . | . . . Fabricators . | . . . Repair Stations . | . . . Recycling Units . | . . . Scanalyzers . | . . . Garrison Access . | . . . Data Cores Recovered . | . . . Used . | . . . Hacking Detections . | . . . Full Trace Events . | . . . Feedback Events . | . . . Feedback Blocked . | . . . Robot Schematics Acquired . | . . . Robots Built . | . . . Authchips . | . . . Time . | . . . Total Robot Build Rating . | . . . Part Schematics Acquired . | . . . Parts Built . | . . . Authchips . | . . . Time . | . . . Total Part Build Rating . | . . . Parts Repaired . | . . . Time . | . . . Parts Recycled . | . . . Recycled Matter . | . . . Retrieved Matter . | . . . Retrieved Components . | . . . Parts Scanalyzed . | . . . Part Schematics Acquired . | . . . Parts Damaged . | . . . Bothacking | -11 -10 -9 ------------ Run | Yrd Mat Mat Used RIF Installer . | . . . Robots Hacked . | . . . Non-combat . | . . . Combat . | . . . Robot Hacks Applied . | . . . Relay Couplers Released . | . . . Fabnet Peak Effective % . | . . . Robots Rewired . | . . . Allies Hacked . | . . . Hacks Repelled . | . . . Allies | -11 -10 -9 -------- Run | Yrd Mat Mat Total Allies . | . . . Largest Group . | . . . Highest-Rated Group . | . . . Highest-Rated Ally . | . . . Total Orders . | . . . Ally Attacks . | . . . Total Damage . | . . . Kills . | . . . Allies Corrupted . | . . . Allies Melted . | . . . Intel | -11 -10 -9 ------- Run | Yrd Mat Mat Robot Analysis Total . | . . . Derelict Logs Recovered . | . . . Drone Launches . | . . . Drone Recoveries . | . . . Exploration | -11 -10 -9 ------------- Run | Yrd Mat Mat Turns Passed 787 | 94 628 65 Spaces Moved 621 | 65 503 53 Core 3 | 3 . . Treads . | . . . Legs . | . . . Wheels 117 | 62 55 . Hover . | . . . Flight 501 | . 448 53 Fastest Speed 37 | 50 37 117 Average Speed 109 | 78 112 117 Slowest Speed 117 | 80 117 117 Overloaded Moves . | . . . Propulsion Burnouts . | . . . Robots Hopped . | . . . Cave-ins Triggered . | . . . Exploration Rate (%) 24 | 5 60 7 Regions Visited 2 Branch Regions . Pre-discovered Areas . | . . . Known Exits Taken 1 | . 1 . Unknown Exits Taken 1 | 1 . . Scrap Searched . | . . . Spaces Dug . | . . . Terrain Destroyed 1 | . 1 . Melee . | . . . Projectile . | . . . AOE 1 | . 1 . Terrain Rammed . | . . . Walls Destroyed . | . . . Machines Disabled . | . . . Actions | -11 -10 -9 --------- Run | Yrd Mat Mat Total 692 | 93 544 55 Wait 6 | . 6 . Move 619 | 64 502 53 Hop . | . . . Pick Up 21 | 10 10 1 Fast Attach . | . . . Attach 10 | 7 2 1 Detach . | . . . Swap 9 | 1 8 . Drop 9 | . 9 . Fire 18 | 11 7 . Melee . | . . . Ram . | . . . Kick . | . . . Crush . | . . . Escape Stasis . | . . . Rewire . | . . . Trap . | . . . Miscellaneous . | . . . Route ------- -11/Scrapyard -10/Materials (discovered 2 exits: *Mat / [*Min]) -9/Materials History --------- Turn | Location | Event 31 | -11/Scrapyard | Discovered new exit (range 16) 95 | -11/Scrapyard | Entered Materials 273 | -10/Materials | Discovered new exit (range 7) 316 | -10/Materials | Build established: Mutant 416 | -10/Materials | Discovered new exit (range 10) 722 | -10/Materials | Identified exit to Materials 723 | -10/Materials | Entered another Materials area 723 | -9/Materials | Evolved 2 slots: Power x1, Utility x1 788 | -9/Materials | Self-destructed Last Messages --------------- 00674_ K-01 Serf collects debris. 00675_ Dropped Imp. Terrain Scanner. 00676_ Acquired Sensor Array. 00679_ K-01 Serf collects debris. 00681_ Acquired 25 matter. 00683_ K-01 Serf collects debris. 00689_ R-06 Scavenger collects Hover Unit. 00689_ K-01 Serf collects debris. 00693_ R-06 Scavenger collects Imp. Terrain Scanner. 00699_ K-01 Serf cleans the Terminal. 00722_ EXIT=IDENTIFIED: MATERIALS PARAMETERS=POWER+1,UTILITY+1 LOCATION=MATERIALS GOAL=ESCAPE 00762_ K-01 Serf collects debris. 00767_ K-01 Serf cleans the Electrolysis Chamber. 00767_ Acquired Imp. Hover Unit. 00770_ K-01 Serf collects debris. Map ----- +----------------------------------------------------+ | ???????????????????????????????????????? | | ???????????????????????????????????????? | | ???????????????????????????????????????? | | ???????????????????????????????????????? | | ???????????????????????????????????????? | | ???????????????????????????????????????? | | ???????????????????????????????????????? | | ???????????????????????????????????????? | | ???????????????????????????????????????? | | ???????????????????????????????????????? | | ???????????????????????????????????????? | | ???????????????????????????????????????? | | ???????????????????????????????????????? | | ??????????# ???????????????????????????? | | ??????????# ######+#########+## ??????? | | ??????""" # !?????? | | ??????""" / x ?????? | | ??????????# ?????? | | ??????????## #####+########????????????? | | ???????????# #?# #?????????????????? | | ???????????# #?# #?????????????????? | | ????X??????# #?# #?????????????????? | | ???????????# #?# """ #?????????????????? | | ?????????### ### """ #?????????????????? | | ?????????# gg # """ #?????????????????? | | ???####### b @ #?????????????????? | | ???# # #?????????????????? | | ???# ##### k #######?????????????????? | | ???# #???# #???????????????????????? | | ???# #???###+###????????????x??????????? | | ???# #?????# !????????????????????????? | | ???# #?????# ??????????????????????? | | ???# #?????# #????????????????????? | | ####+####### """ #????????????????????? | | # # + """ #????????????????????? | | # # # """ #????????????????????? | | # # ########????????????????????? | | # # #?????????????????????????? | | # + #?????????????????????????? | | # # #?????????????????????????? | | # # #?????????????????????????? | | # # #?????????????????????????? | | # # #?????????????????????????? | | ########## #?????????????????????????? | | ?????????#####?????????????????????????? | | ???????????????????????????????????????? | | ???????????????????????????????????????? | | ???????????????????????????????????????? | | ???????????????????????????????????????? | | ???????????????????????????????????????? | +----------------------------------------------------+ Best States ------------- Heat Dissipation 28 Energy Generation 10 Energy Capacity 250 Matter Stores 300 Matter Capacity 300 Sight Range 16 Robot Scan Range 14 Terrain Scan Range 16 Terrain Scan Density 10 ECM Strength 1 Resistance: KI 20 Resistance: TH 20 Resistance: EX 20 Resistance: EM 20 Resistance: I 20 Resistance: S 20 Resistance: P 20 Evasion (%) 44 Offensive Hacking 10 Item Schematics ----------------- None Robot Schematics ------------------ None Fabricated ------------ Nothing Alien Tech Used ----------------- None Achievements -------------- None Challenges ------------ None Game ------ Seed LongswordMinesnifferSabre Manual? 0 Play Time 00:09:47 Cumulative 5.5 hours Start 2024.03.13 @ 22:36:30 End 2024.03.13 @ 22:46:29 Sessions 1 Manual Loads 0 Difficulty Adventurer Special Mode None Game No. 8 Rogue 0 Adventurer 8 Explorer 0 Win Type - Total 0 Types 0/0/0/0/0/0/0/0/0 Lore% 7 Gallery% 11 Achievement% 11 Wizard Run 0 Options --------- Layout 1 ASCII 0 Keyboard 0 Movement Mouse Keybinds 0 Fullscreen 2 Font 24/Smallcaps Map View 50x35 Zoom Use 0% Tactical HUD 1 Map Filters NONE Filters NONE Steam 1 RUN: ee899f74-405b-4251-9220-1454ebd951f0